bitfinex-derivatives/quotes_SOLF0:USTF0_20241026
["timestamp","ask_amount","ask_price","bid_price","bid_amount"]
[1729974015859,2.4457,172.77,172.66,5.14]
[1729974015860,8.00586651,172.76,172.7,8.00586651]
[1729974016157,8.00586651,172.76,172.71,8.89768591]
[1729974016449,5.3433,172.77,172.72,1.44910528]
[1729974016653,5.3433,172.77,172.68,3.85930839]
[1729974016855,5.3433,172.77,172.69,10.34711907]
[1729974017052,5.3433,172.77,172.71,2.8984]
[1729974017244,5.3433,172.77,172.72,1.44913537]
[1729974017448,5.3433,172.77,172.69,3.85930839]
[1729974017650,2.8978,172.76,172.71,2.8985]
[1729974017846,2.4457,172.77,172.72,1.44914561]
[1729974018154,2.4457,172.77,172.75,2.8978]
[1729974018360,2.4457,172.77,172.7,3.85877355]
[1729974018652,2.4457,172.77,172.71,10.34541795]
[1729974018857,2.4457,172.77,172.75,2.8978]
[1729974019056,7.5857,172.77,172.75,2.8978]
[1729974020159,5.14,172.77,172.76,2.8978]
[1729974020954,12.53280756,172.83,172.72,5.03460152]
[1729974020955,5.14,172.79,172.72,5.03460152]
[1729974021156,3.6332,172.87,172.74,12.53280756]
[1729974021353,3.6332,172.87,172.76,12.53280756]
[1729974021354,5.14,172.86,172.76,12.53280756]
[1729974021753,5.14,172.86,172.8,2.897]
[1729974021754,2.8963,172.85,172.8,2.897]
[1729974022660,5.14,172.84,172.8,2.897]
[1729974024448,5.14,172.84,172.76,12.53280756]
[1729974024652,5.14,172.84,172.81,2.8968]
[1729974025052,8.0364,172.84,172.74,21.40817812]
[1729974025253,8.0364,172.84,172.75,6.47511539]
[1729974025453,5.14,172.84,172.75,5.02629711]
[1729974025747,5.14,172.84,172.79,2.8971]
[1729974026559,5.14,172.84,172.8,2.8971]
[1729974027268,5.14,172.84,172.82,2.8967]
[1729974027557,5.14,172.85,172.78,12.53280756]
[1729974027963,5.14,172.85,172.83,2.8966]
[1729974029768,5.14,172.85,172.84,2.8964]
[1729974030357,5.14,172.85,172.79,180.494468]
[1729974030358,7.5159,172.87,172.86,2.8961]
[1729974030555,2.3759,172.87,172.86,2.8961]
[1729974030761,7.5159,172.87,172.81,12.53280756]
[1729974031670,2.3759,172.87,172.81,12.53280756]
[1729974031872,5.14,172.86,172.79,180.494468]
[1729974032871,8.0361,172.86,172.81,2.8968]
[1729974033464,5.14,172.86,172.82,2.8967]
[1729974033765,5.14,172.86,172.79,180.494468]
[1729974033766,2.3759,172.87,172.81,12.53280756]
[1729974033965,2.3759,172.87,172.82,2.8966]
[1729974034171,2.3759,172.87,172.81,12.53280756]
[1729974034373,2.3759,172.87,172.79,180.494468]
[1729974034572,5.2719,172.87,172.81,2.8969]
[1729974034766,5.2719,172.87,172.79,180.494468]
[1729974036269,5.2719,172.87,172.82,2.8967]
[1729974036774,1.2319,172.9,172.88,2.8956]
[1729974036970,5.14,172.89,172.82,12.53280756]
[1729974037371,5.14,172.89,172.86,2.896]
[1729974037767,5.14,172.89,172.82,12.53280756]
[1729974037968,5.14,172.89,172.86,2.8961]
[1729974038766,2.8949,172.93,172.86,2.8961]
[1729974038971,1.2244,172.95,172.85,12.53280756]
[1729974039273,5.24,172.94,172.79,185.734468]
[1729974039480,12.53280756,172.93,172.82,12.53280756]
[1729974039669,12.53280756,172.93,172.85,2.8961]
[1729974040071,5.24,172.94,172.85,2.8961]
[1729974040273,17.77280756,172.94,172.82,12.53280756]
[1729974040475,2.8952,172.92,172.82,12.53280756]
[1729974040776,12.53280756,172.93,172.82,12.53280756]
[1729974041282,1.2244,172.95,172.84,12.53280756]
[1729974041575,5.24,172.94,172.84,12.53280756]
[1729974041973,8.1349,172.94,172.88,2.8957]
[1729974042567,2.895,172.93,172.87,2.8959]
[1729974042975,2.8938804,172.98,172.84,12.53280756]
[1729974043169,2.8948,172.94,172.88,2.8956]
[1729974043974,2.8951,172.92,172.87,2.8959]
[1729974044174,5.24,172.92,172.82,12.53280756]
[1729974044777,2.8954,172.91,172.85,2.8962]
[1729974044978,2.8954,172.91,172.82,12.53280756]
[1729974045771,12.53280756,172.91,172.81,2.8968]
[1729974046081,3.7838,172.9,172.8,12.53280756]
[1729974046477,3.7838,172.9,172.82,12.53280756]
[1729974046674,2.5246,172.9,172.84,12.53280756]
[1729974046870,5.24,172.92,172.86,2.896]
[1729974047072,5.24,172.92,172.87,12.53280756]
[1729974047475,3.7838,172.97,172.87,12.53280756]
[1729974047675,5.24,172.96,172.87,12.53280756]
[1729974047876,5.24,172.96,172.83,5.24]
[1729974048173,5.24,172.96,172.87,12.53280756]
[1729974048880,5.24,172.96,172.88,2.8957]
[1729974049586,2.8948,172.94,172.89,2.8956]
[1729974049882,2.8948,172.94,172.87,12.53280756]
[1729974050381,2.8947,172.95,172.87,12.53280756]
[1729974050779,5.24,172.96,172.91,2.8952]
[1729974050984,5.24,172.96,172.87,12.53280756]
[1729974051784,3.7838,172.97,172.89,12.53280756]
[1729974051975,5.24,172.96,172.89,12.53280756]
[1729974052482,5.24,172.96,172.94,2.8947]
[1729974053579,5.24,172.96,172.94,2.8946]
[1729974053983,5.24,172.96,172.89,12.53280756]
[1729974054288,5.24,172.98,172.95,2.8946]
[1729974054490,56.28,173.0,172.92,12.53280756]
[1729974054680,12.53280756,173.01,172.97,2.8942]
[1729974054681,5.24,172.99,172.97,2.8942]
[1729974055279,5.24,172.99,172.92,12.53280756]
[1729974055983,5.24,172.99,172.97,2.8942]
[1729974056285,5.24,172.99,172.9,12.53280756]
[1729974056492,8.134,172.99,172.95,2.8946]
[1729974056879,5.24,172.99,172.95,2.8946]
[1729974057781,8.134,172.99,172.95,2.8946]
[1729974058882,5.24,172.99,172.93,12.53280756]
[1729974059084,5.24,172.99,172.96,2.8942]
[1729974059480,5.24,172.99,172.94,2.8946]
[1729974059674,5.24,172.99,172.93,12.53280756]
[1729974060286,5.24,172.99,172.95,2.8944]
[1729974060582,5.24,172.99,172.9,12.53280756]
[1729974060783,5.24,172.99,172.92,2.895]
[1729974060984,2.8944,172.97,172.9,12.53280756]
[1729974061290,17.77280756,172.99,172.88,12.53280756]
[1729974061676,2.8945,172.96,172.88,12.53280756]
[1729974061878,17.77280756,172.99,172.92,2.8949]
[1729974062084,5.24,172.99,172.9,12.53280756]
[1729974062789,2.8941,172.98,172.93,2.8948]
[1729974062982,2.8941,172.98,172.9,12.53280756]
[1729974063284,2.5321,173.03,172.97,12.53280756]
[1729974063477,12.53280756,173.08,172.97,12.53280756]
[1729974063685,2.8931,173.04,173.0,2.8937]
[1729974063984,18.15280756,173.07,173.0,2.8937]
[1729974064175,2.8938,173.0,172.96,2.8944]
[1729974064376,5.62,173.02,172.95,12.53280756]
[1729974064590,12.53280756,173.05,172.95,12.53280756]
[1729974064792,5.62,173.01,172.92,18.15280756]
[1729974065087,5.62,173.01,172.92,12.53280756]
[1729974065286,8.5136,173.01,172.92,12.53280756]
[1729974065988,16.20960756,173.06,172.92,12.53280756]
[1729974065989,3.6768,173.06,172.92,12.53280756]
[1729974066191,2.8934,173.02,172.94,12.53280756]
[1729974066487,5.62,173.05,172.94,12.53280756]
[1729974066885,2.8938,173.0,172.95,2.8946]
[1729974067083,12.53280756,173.04,172.94,12.53280756]
[1729974067084,5.62,172.99,172.94,12.53280756]
[1729974067283,5.62,172.98,172.92,12.53280756]
[1729974068087,5.62,172.98,172.94,2.8946]
[1729974068387,5.62,172.98,172.9,12.53280756]
[1729974069390,5.62,172.98,172.94,2.8946]
[1729974069792,5.62,172.98,172.92,12.53280756]
[1729974070090,2.8943,172.97,172.92,15.42770756]
[1729974070283,2.8943,172.97,172.92,2.8949]
[1729974070887,2.8946,172.96,172.9,15.42820756]
[1729974071091,5.62,172.98,172.9,12.53280756]
[1729974071388,5.62,172.98,172.86,180.39774157]
[1729974071389,1.2422,172.97,172.88,12.53280756]
[1729974072085,1.2422,172.97,172.88,15.42840756]
[1729974072282,13.77500756,172.97,172.88,12.53280756]
[1729974072478,2.8948,172.94,172.89,2.8956]
[1729974072683,5.62,172.93,172.88,12.53280756]
[1729974073480,5.62,172.93,172.86,180.39774157]
[1729974073888,5.62,172.93,172.88,12.53280756]
[1729974074794,5.62,172.93,172.85,12.53280756]
[1729974075185,5.62,172.93,172.88,2.8956]
[1729974075889,2.8956,172.89,172.84,2.8964]
[1729974076097,5.62,172.88,172.81,12.53280756]
[1729974077293,5.62,172.88,172.85,2.8962]
[1729974079792,5.62,172.88,172.83,12.53280756]
[1729974081699,5.62,172.88,172.85,2.8961]
[1729974082403,5.62,172.88,172.84,2.8963]
[1729974082694,5.62,172.88,172.83,12.53280756]
[1729974083487,1.2596,172.92,172.87,12.53280756]
[1729974083707,5.62,172.92,172.87,12.53280756]
[1729974084098,5.62,172.92,172.9,2.8953]
[1729974084405,5.62,172.92,172.87,12.53280756]
[1729974084906,5.62,172.92,172.9,2.8953]
[1729974086697,5.62,172.92,172.85,12.53280756]
[1729974087398,1.2048,172.91,172.83,12.53280756]
[1729974087601,13.73760756,172.91,172.81,12.53280756]
[1729974087903,1.2435,172.9,172.81,12.53280756]
[1729974088102,2.8958,172.88,172.83,2.8965]
[1729974088402,5.62,172.87,172.83,2.8965]
[1729974089403,5.62,172.87,172.81,12.53280756]
[1729974089606,5.62,172.87,172.83,2.8965]
[1729974089901,5.62,172.87,172.81,12.53280756]
[1729974090202,5.62,172.87,172.77,12.53280756]
[1729974090203,6.8489,172.87,172.77,12.53280756]
[1729974090595,2.8963,172.85,172.8,2.897]
[1729974091194,2.8963,172.85,172.81,2.8969]
[1729974091704,5.62,172.84,172.81,2.8969]
[1729974092496,2.8963,172.85,172.81,2.8969]
[1729974092497,5.62,172.83,172.81,2.8969]
[1729974092696,1.2289,172.87,172.71,18.15280756]
[1729974092697,1.2289,172.87,172.82,12.53280756]
[1729974092898,5.62,172.88,172.84,12.53280756]
[1729974093301,5.62,172.88,172.85,2.8961]
[1729974093497,5.62,172.88,172.84,12.53280756]
[1729974093804,5.62,172.88,172.85,2.8961]
[1729974095810,1.1993,172.92,172.86,12.53280756]
[1729974096005,6.6648,172.91,172.86,12.53280756]
[1729974096204,1.2401,172.97,172.86,12.53280756]
[1729974096404,9.6078,172.96,172.91,2.8951]
[1729974096605,6.7134,172.96,172.91,2.8951]
[1729974097012,2.8947,172.95,172.91,2.8951]
[1729974097304,6.7134,172.96,172.91,2.8951]
[1729974097305,5.46,172.94,172.91,2.8951]
[1729974097511,5.46,172.94,172.88,12.53280756]
[1729974097709,1.2534,172.96,172.88,12.53280756]
[1729974097907,5.46,172.95,172.93,2.8948]
[1729974099616,5.3573,172.97,172.93,2.8948]
[1729974099617,4.1344,172.97,172.93,2.8948]
[1729974099807,5.46,172.96,172.93,2.8948]
[1729974100106,5.46,172.96,172.95,2.8946]
[1729974102313,1.2532,173.0,172.91,12.53280756]
[1729974102509,5.46,172.98,172.97,2.8942]
[1729974103209,5.46,172.99,172.97,2.8942]
[1729974104111,5.46,172.99,172.93,12.53280756]
[1729974104112,5.46,172.99,172.91,12.53280756]
[1729974104313,5.46,172.99,172.95,2.8946]
[1729974104612,5.46,172.99,172.91,12.53280756]
[1729974105011,8.3539,172.99,172.95,2.8944]
[1729974105405,5.46,172.99,172.91,12.53280756]
[1729974106220,5.46,172.99,172.95,2.8944]
[1729974106506,5.46,172.99,172.91,12.53280756]
[1729974107013,8.3539,172.99,172.94,2.8946]
[1729974107414,5.46,172.99,172.91,12.53280756]
[1729974107915,5.46,172.99,172.93,2.8948]
[1729974108110,5.46,172.99,172.91,12.53280756]
[1729974108817,5.46,172.99,172.93,2.8948]
[1729974109016,5.46,172.99,172.91,12.53280756]
[1729974112514,8.3539,172.99,172.91,12.53280756]
[1729974112916,5.46,172.99,172.93,12.53280756]
[1729974113117,5.46,172.99,172.95,2.8944]
[1729974114725,5.46,172.99,172.96,2.8944]
[1729974115215,5.46,172.99,172.93,12.53280756]
[1729974115817,5.46,172.99,172.94,2.8946]
[1729974116024,5.46,172.99,172.93,12.53280756]
[1729974117026,5.46,172.99,172.91,12.53280756]
[1729974117027,2.8941,172.98,172.91,12.53280756]
[1729974117323,5.46,172.99,172.89,12.53280756]
[1729974117625,5.46,172.99,172.91,12.53280756]
[1729974118014,5.46,172.99,172.94,2.8946]
[1729974118015,2.8942,172.98,172.94,2.8946]
[1729974119527,2.8942,172.98,172.94,2.8947]
[1729974120429,8.01078435,172.97,172.92,10.90578435]
[1729974120626,8.01078435,172.95,172.89,8.01078435]
[1729974120821,6.6366,172.94,172.91,8.01078435]
[1729974121020,9.5314,172.94,172.91,8.01078435]
[1729974121830,9.5314,172.94,172.9,2.8953]
[1729974121831,2.8951,172.93,172.89,2.8956]
[1729974122034,6.6366,172.94,172.92,8.01078435]
[1729974123040,6.6366,172.94,172.92,10.90578435]
[1729974123638,6.8366,172.94,172.93,2.8949]
[1729974124639,6.8366,172.94,172.92,8.01078435]
[1729974124831,6.8366,172.94,172.92,10.90578435]
[1729974125141,6.8366,172.94,172.92,8.01078435]
[1729974125344,6.8366,172.94,172.93,2.8949]
[1729974125937,6.8366,172.94,172.92,10.90578435]
[1729974126637,5.64,172.94,172.93,2.8949]
[1729974128846,2.8943,172.97,172.93,2.8949]
[1729974129050,8.5343,172.97,172.94,8.01078435]
[1729974129443,5.64,172.97,172.94,8.01078435]
[1729974129651,5.64,172.97,172.96,8.01078435]
[1729974130850,5.64,172.97,172.94,10.90538435]
[1729974131049,5.64,172.97,172.94,2.8946]
[1729974131445,5.64,172.97,172.86,5.64]
[1729974131646,8.01078435,172.96,172.87,1.44784652]
[1729974131950,8.01078435,172.96,172.9,8.01078435]
[1729974132149,2.8946,172.95,172.91,2.8952]
[1729974132554,8.01078435,172.94,172.85,6.46079902]
[1729974132750,8.01078435,172.94,172.89,8.01078435]
[1729974133751,2.8951,172.93,172.89,10.90628435]
[1729974134949,5.64,172.92,172.86,1.44805955]
[1729974135150,5.64,172.92,172.84,180.41537978]
[1729974135454,2.8954,172.91,172.87,10.90658435]
[1729974136053,8.01078435,172.91,172.86,8.01078435]
[1729974136755,8.01078435,172.9,172.84,8.01078435]
[1729974137951,2.8958,172.88,172.84,8.01078435]
[1729974138152,5.66,172.87,172.84,8.01078435]
[1729974139261,5.66,172.87,172.85,2.8962]
[1729974139654,5.66,172.87,172.84,8.01078435]
[1729974140861,5.66,172.87,172.84,10.90718435]
[1729974141964,8.556,172.87,172.83,8.01078435]
[1729974142965,8.556,172.87,172.83,10.90738435]
[1729974143268,5.66,172.87,172.84,8.01078435]
[1729974145070,5.66,172.87,172.85,2.8961]
[1729974146567,5.66,172.9,172.86,8.01078435]
[1729974146769,1.2073,172.92,172.89,8.01078435]
[1729974147071,5.66,172.92,172.9,8.01078435]
[1729974147472,5.66,172.92,172.91,2.8951]
[1729974150471,5.66,172.92,172.89,2.8955]
[1729974154477,5.66,172.92,172.89,8.01078435]
[1729974154975,5.66,172.92,172.9,2.8953]
[1729974155171,5.66,172.92,172.89,8.01078435]
[1729974156166,5.66,172.92,172.89,10.90618435]
[1729974156670,5.66,172.92,172.89,8.01078435]
[1729974156871,5.66,172.92,172.9,2.8954]
[1729974157572,5.66,172.92,172.89,10.90628435]
[1729974158180,5.66,172.92,172.89,8.01078435]
[1729974158476,5.66,172.92,172.9,2.8954]
[1729974158681,5.66,172.92,172.89,8.01078435]
[1729974158888,5.66,172.92,172.89,10.90628435]
[1729974159580,5.66,172.92,172.89,2.8955]
[1729974159784,5.66,172.92,172.89,10.90628435]
[1729974160378,5.66,172.92,172.89,8.01078435]
[1729974160680,5.66,172.92,172.9,2.8954]
[1729974166887,5.66,172.92,172.89,10.90628435]
[1729974167292,5.66,172.92,172.89,8.01078435]
[1729974167689,5.66,172.92,172.83,8.86990857]
[1729974167895,2.8954,172.9,172.86,10.90678435]
[1729974169499,8.01078435,172.89,172.83,5.02432446]
[1729974169697,8.01078435,172.88,172.84,1.44827936]
[1729974169903,5.48,172.87,172.83,8.01078435]
[1729974170794,5.48,172.87,172.84,2.8963]
[1729974173703,5.48,172.87,172.85,2.8962]
[1729974174294,5.48,172.87,172.85,8.01078435]
[1729974174493,5.48,172.87,172.86,2.8961]
[1729974174801,5.48,172.87,172.85,8.01078435]
[1729974175101,5.48,172.87,172.85,2.8962]
[1729974180005,2.8965,172.84,172.81,2.8969]
[1729974180208,10.90728435,172.84,172.81,2.8969]
[1729974180595,8.01078435,172.84,172.81,2.8969]
[1729974180995,8.01078435,172.84,172.79,8.01078435]
[1729974181300,8.01078435,172.83,172.8,1.4485666]
[1729974181501,13.49078435,172.82,172.78,8.01078435]
[1729974181698,13.49078435,172.82,172.79,6.47621583]
[1729974181905,13.49078435,172.82,172.78,8.01078435]
[1729974182104,13.49078435,172.82,172.79,6.47586528]
[1729974182105,5.48,172.82,172.79,6.47586528]
[1729974182405,1.2911,172.87,172.81,8.01078435]
[1729974182709,17.39,173.1,172.84,8.01078435]
[1729974182710,5.48,172.89,172.84,8.01078435]
[1729974182901,5.48,172.89,172.86,2.8961]
[1729974183904,5.48,172.89,172.8,3.84779738]
[1729974184102,10.46888435,172.92,172.88,2.8957]
[1729974184301,5.48,172.91,172.88,2.8957]
[1729974184501,5.48,172.91,172.9,2.8954]
[1729974190507,6.5278,172.95,172.94,2.8947]
[1729974190508,3.6331,172.95,172.94,2.8947]
[1729974190803,15.89008435,172.95,172.89,8.01078435]
[1729974191010,5.42,172.94,172.91,10.90588435]
[1729974191212,5.42,172.94,172.91,8.01078435]
[1729974191601,5.42,172.94,172.91,2.8952]
[1729974194513,5.42,172.94,172.91,2.8951]
[1729974196414,5.42,172.94,172.92,2.8951]
[1729974198819,10.90578435,172.93,172.88,8.01078435]
[1729974199520,10.90578435,172.93,172.89,2.8954]
[1729974199820,2.8952,172.92,172.88,8.01078435]
[1729974200811,2.8952,172.92,172.88,10.90648435]
[1729974204421,8.01078435,172.93,172.88,8.01078435]
[1729974204613,10.90578435,172.93,172.89,2.8955]
[1729974205619,8.01078435,172.91,172.82,180.45504198]
[1729974205817,10.90608435,172.91,172.87,2.8958]
[1729974206822,8.01078435,172.91,172.87,2.8958]
[1729974207022,2.91162469,172.93,172.86,8.01078435]
[1729974207023,8.01078435,172.9,172.86,8.01078435]
[1729974207316,5.42,172.89,172.86,8.01078435]
[1729974208117,5.42,172.89,172.84,3.85509221]
[1729974208118,2.8958,172.88,172.84,10.90708435]
[1729974208325,2.8958,172.88,172.85,1.44827768]
[1729974208526,2.8958,172.88,172.84,2.8963]
[1729974208724,2.8958,172.88,172.85,1.44832025]
[1729974208918,8.01078435,172.87,172.84,2.8963]
[1729974209118,8.01078435,172.87,172.85,1.44832324]
[1729974209318,8.01078435,172.87,172.82,188.46582633]
[1729974209519,8.3156,172.89,172.85,2.8962]
[1729974209718,16.32638435,172.89,172.85,2.8962]
[1729974210324,16.32638435,172.89,172.85,10.90698435]
[1729974210527,16.32638435,172.89,172.85,2.8962]
[1729974211325,5.42,172.89,172.87,2.8958]
[1729974211516,8.01078435,172.92,172.87,8.01078435]
[1729974211720,5.42,172.91,172.87,8.01078435]
[1729974212120,5.42,172.91,172.89,2.8956]
[1729974213524,13.43078435,172.91,172.89,2.8956]
[1729974214226,5.42,172.91,172.88,8.01078435]
[1729974214424,5.42,172.91,172.9,2.8954]
[1729974215024,5.42,172.91,172.89,2.8955]
[1729974215025,13.43078435,172.91,172.89,2.8955]
[1729974218238,1.2209,172.94,172.92,2.895]
[1729974218422,5.16,172.93,172.92,2.895]
[1729974218738,13.17078435,172.93,172.89,8.01078435]
[1729974218931,13.17078435,172.93,172.9,2.8953]
[1729974219935,5.16,172.93,172.92,2.8951]
[1729974220137,5.16,172.93,172.89,8.01078435]
[1729974220433,5.16,172.93,172.9,2.8952]
[1729974222329,8.0549,172.93,172.89,10.90638435]
[1729974222531,5.16,172.93,172.9,1.44793877]
[1729974222735,5.16,172.93,172.89,8.01078435]
[1729974222936,5.16,172.93,172.9,1.44793865]
[1729974223137,5.16,172.93,172.9,2.8953]
[1729974224339,5.16,172.93,172.89,8.01078435]
[1729974224340,8.01078435,172.92,172.82,180.45504198]
[1729974224542,5.16,172.93,172.86,8.01078435]
[1729974224844,8.01078435,172.91,172.87,6.48511389]
[1729974225133,8.01078435,172.91,172.86,8.01078435]
[1729974225335,8.01078435,172.91,172.87,1.44814433]
[1729974225543,8.01078435,172.91,172.86,8.01078435]
[1729974225739,8.01078435,172.91,172.87,6.48500562]
[1729974226037,8.01078435,172.91,172.86,8.01078435]
[1729974226241,8.01078435,172.91,172.87,9.38093025]
[1729974226539,8.01078435,172.91,172.87,2.8958]
[1729974228532,2.8951,172.92,172.87,2.8958]
[1729974228736,10.90588435,172.92,172.87,2.8958]
[1729974229535,2.8951,172.92,172.88,2.8957]
[1729974229738,10.90588435,172.92,172.88,2.8957]
[1729974230940,8.01078435,172.92,172.88,2.8957]
[1729974234545,8.01078435,172.92,172.89,2.8954]
[1729974234942,8.01078435,172.92,172.78,5.16]
[1729974235138,8.01078435,172.92,172.87,2.8957]
[1729974235344,8.01078435,172.92,172.88,1.44812381]
[1729974235643,8.01078435,172.92,172.88,2.8957]
[1729974236349,10.90588435,172.92,172.88,2.8957]
[1729974236541,10.90588435,172.92,172.87,2.8959]
[1729974237146,2.8952,172.91,172.87,2.8959]
[1729974237536,8.01078435,172.92,172.88,4.34363374]
[1729974237739,8.01078435,172.92,172.88,2.8957]
[1729974238439,8.01078435,172.89,172.73,31.03360957]
[1729974238747,8.01078435,172.89,172.82,8.01078435]
[1729974238748,5.16,172.88,172.82,8.01078435]
[1729974238942,5.16,172.88,172.84,2.8963]
[1729974239138,8.01078435,172.87,172.83,8.89587377]
[1729974239337,8.01078435,172.86,172.81,8.01078435]
[1729974239540,8.01078435,172.86,172.82,6.48720461]
[1729974239740,8.01078435,172.86,172.83,1.44842002]
[1729974239942,8.01078435,172.86,172.81,8.01078435]
[1729974240248,8.01078435,172.86,172.83,2.8965]
[1729974240442,8.01078435,172.84,172.72,191.4769934]
[1729974240641,13.17078435,172.83,172.78,8.01078435]
[1729974240837,5.16,172.82,172.79,10.34999566]
[1729974241041,5.16,172.82,172.8,6.4891261]
[1729974241254,5.16,172.82,172.81,1.4485814]
[1729974241544,5.16,172.82,172.78,8.01078435]
[1729974241746,5.16,172.82,172.79,6.48730385]
[1729974241946,5.16,172.82,172.8,9.38440385]
[1729974242150,13.17078435,172.82,172.72,180.5202934]
[1729974242338,5.16,172.82,172.77,8.01078435]
[1729974242543,5.16,172.82,172.79,2.8971]
[1729974242739,5.16,172.82,172.8,1.44870374]
[1729974242944,5.16,172.82,172.8,8.01078435]
[1729974243150,13.40988435,172.87,172.81,9.45940508]
[1729974243446,5.16,172.84,172.83,8.01078435]
[1729974243651,1.1835,172.92,172.83,14.49424247]
[1729974243652,5.16,172.86,172.83,14.49424247]
[1729974243958,5.16,172.87,172.84,9.45940508]
[1729974244152,5.16,172.87,172.85,2.8962]
[1729974244541,5.06,172.87,172.84,8.01078435]
[1729974244852,5.06,172.87,172.79,3.85643836]
[1729974244853,5.06,172.87,172.86,10.90678435]
[1729974245547,5.06,172.87,172.86,12.35503662]
[1729974246153,5.06,172.87,172.86,12.35502124]
[1729974247053,5.06,172.87,172.86,4.34423689]
[1729974255258,5.06,172.87,172.86,9.375317]
[1729974255859,2.514,172.92,172.9,2.8954]
[1729974256060,2.8949,172.94,172.76,5.06]
[1729974256061,5.06,172.94,172.89,8.01078435]
[1729974256268,8.01078435,172.93,172.9,1.44794013]
[1729974256560,8.01078435,172.93,172.9,2.8954]
[1729974258761,5.06,172.94,172.91,2.8951]
[1729974258967,8.01078435,172.93,172.91,2.8951]
[1729974260664,8.01078435,172.93,172.88,8.01078435]
[1729974260867,8.01078435,172.93,172.9,2.8953]
[1729974261160,8.01078435,172.92,172.86,8.01078435]
[1729974261367,8.01078435,172.92,172.89,2.8956]
[1729974261865,8.01078435,172.92,172.9,1.44791566]
[1729974262170,2.3994,172.93,172.86,8.01078435]
[1729974262371,2.3994,172.93,172.91,2.8951]
[1729974262871,8.01078435,172.92,172.91,2.8951]
[1729974264162,8.01078435,172.92,172.89,2.8954]
[1729974264568,8.01078435,172.92,172.87,8.01078435]
[1729974264767,8.01078435,172.92,172.9,2.8953]
[1729974265165,1.2808,172.99,172.89,8.01078435]
[1729974265363,8.01078435,172.95,172.93,2.8947]
[1729974265669,8.01078435,172.96,172.89,8.01078435]
[1729974265871,8.01078435,172.96,172.93,2.8948]
[1729974267067,5.06,172.95,172.94,2.8947]
[1729974267267,8.01078435,172.96,172.94,2.8947]
[1729974267567,5.06,172.95,172.94,2.8947]
[1729974268467,5.06,172.97,172.93,2.8948]
[1729974268667,5.06,172.97,172.92,8.01078435]
[1729974269263,2.93150989,173.02,172.94,8.01078435]
[1729974269468,5.06,173.01,172.98,2.894]
[1729974269670,8.01078435,173.0,172.98,2.894]
[1729974271673,8.01078435,173.0,172.95,8.01078435]
[1729974271973,5.06,173.0,172.99,2.8939]
[1729974273774,4.9,173.0,172.99,2.8939]
[1729974276472,4.9,173.0,172.97,2.8941]
[1729974276674,8.01078435,172.98,172.97,2.8941]
[1729974277380,12.91078435,173.0,172.97,2.8941]
[1729974277572,12.91078435,173.0,172.98,2.8941]
[1729974277973,15.80458435,173.0,172.95,8.01078435]
[1729974278386,15.80458435,173.0,172.96,2.8943]
[1729974279388,4.9,173.0,172.95,8.01078435]
[1729974279585,12.91078435,173.0,172.95,8.01078435]
[1729974279786,8.01078435,172.99,172.93,8.01078435]
[1729974281884,10.90468435,172.99,172.95,2.8944]
[1729974283393,2.8941,172.98,172.94,2.8946]
[1729974283687,8.01078435,172.97,172.9,1.44774522]
[1729974283887,8.01078435,172.95,172.92,2.8951]
[1729974284090,4.9,172.94,172.92,2.8951]
[1729974284985,4.9,172.94,172.93,2.8949]
[1729974286996,4.9,172.94,172.91,2.8952]
[1729974287190,4.9,172.94,172.9,8.01078435]
[1729974288297,4.9,172.94,172.92,2.8951]
[1729974290197,4.9,172.94,172.83,4.9]
[1729974290394,4.9,172.94,172.91,2.8951]
[1729974290787,4.9,172.94,172.92,2.8949]
[1729974293395,4.9,172.94,172.93,2.8949]